[Event "Slovakian-ch Youth 2022"]
[Site "Lubovna"]
[Date "2022.05.23"]
[Round "4.18"]
[White "Jurky, Marian"]
[Black "Rak, Martin"]
[Result "0-1"]
[ECO "D30"]
[WhiteElo "1689"]
[BlackElo "1849"]
[Annotator "NA COMBH"]
[PlyCount "71"]
[EventDate "2022.05.22"]
[EventCountry "SVK"]
[SourceTitle "playchess.com"]
[Source "ChessBase"]
[SourceQuality "1"]
[TimeControl "40/5400+30:1800+30"]

1. d4 {[%emt 0:00:10]} Nf6 {[%emt 0:00:44]} 2. c4 {[%emt 0:00:07]} e6 {[%emt 0:00:20]} 3. Nf3 {[%emt 0:00:34]} d5 {[%emt 0:00:16]} 4. Bg5 {[%emt 0:05:45]} h6 {[%emt 0:01:34]} 5. Bxf6 {[%emt 0:02:51]} Qxf6 {[%emt 0:01:44]} 6. cxd5 {[%emt 0:02:32]} exd5 {[%emt 0:00:20]} 7. e3 {[%emt 0:00:09]} c6 {[%emt 0:05:29]} 8. Bd3 {[%emt 0:01:52]} Bd6 {[%emt 0:10:23]} 9. Nbd2 {[%emt 0:01:54]} Bf5 {[%emt 0:04:50]} 10. Qc2 {[%emt 0:01:22]} Bxd3 {[%emt 0:01:05]} 11. Qxd3 {[%emt 0:00:07]} O-O {[%emt 0:02:04]} 12. O-O {[%emt 0:00:04]} Re8 {[%emt 0:09:55]} 13. h3 {[%emt 0:03:17]} Qe6 {[%emt 0:06:24]} 14. Rfe1 {[%emt 0:08:11]} f5 {[%emt 0:01:53]} 15. Nf1 {[%emt 0:05:23]} Nd7 {[%emt 0:01:41]} 16. N3d2 {[%emt 0:11:16]} Nf6 {[%emt 0:05:24]} 17. f4 {[%emt 0:02:18]} Ne4 {[%emt 0:09:44]} 18. Nxe4 {[%emt 0:00:28]} fxe4 {[%emt 0:00:26]} 19. Qd2 {[%emt 0:02:17]} Kh8 {[%emt 0:00:56]} 20. Nh2 {[%emt 0:03:03]} h5 {[%emt 0:03:26]} 21. Qf2 {[%emt 0:02:34]} c5 {[%emt 0:01:54]} 22. dxc5 {[%emt 0:03:02]} Bxc5 {[%emt 0:00:09]} 23. Rac1 {[%emt 0:02:34]} b6 {[%emt 0:00:38]} 24. Nf1 {[%emt 0:03:43]} Qf6 {[%emt 0:01:42]} 25. Rcd1 {[%emt 0:07:17]} Rad8 {[%emt 0:00:25]} 26. Kh1 {[%emt 0:02:29]} g5 {[%emt 0:03:10]} 27. f5 {[%emt 0:05:18]} g4 {[%emt 0:03:10]} 28. hxg4 {[%emt 0:05:02]} hxg4 {[%emt 0:00:29]} 29. g3 {[%emt 0:01:08]} Re5 {[%emt 0:04:01]} 30. Nh2 {[%emt 0:05:02]} Rxf5 {[%emt 0:01:58]} 31. Qe2 {[%emt 0:00:45]} Qh6 {[%emt 0:03:01]} 32. Qxg4 {[%emt 0:05:51]} Rh5 {[%emt 0:01:59]} 33. Rd2 {[%emt 0:02:43]} Bb4 {[%emt 0:00:50]} 34. Ree2 {[%emt 0:02:12]} Bxd2 {[%emt 0:01:51]} 35. Rxd2 {[%emt 0:00:01]} Rf8 {[%emt 0:00:38]} 36. Kg2 {[%emt 0:01:04]} 0-1

[Event "Slovakian-ch Youth 2022"]
[Site "Lubovna"]
[Date "2022.05.23"]
[Round "4.19"]
[White "Koska, Jiri"]
[Black "Orgon, Patrik"]
[Result "1/2-1/2"]
[ECO "A13"]
[WhiteElo "1759"]
[BlackElo "1721"]
[Annotator "NA COMBH"]
[PlyCount "66"]
[EventDate "2022.05.22"]
[EventCountry "SVK"]
[SourceTitle "playchess.com"]
[Source "ChessBase"]
[SourceQuality "1"]
[TimeControl "40/5400+30:1800+30"]

1. Nf3 {[%emt 0:00:06]} d5 {[%emt 0:00:14]} 2. g3 {[%emt 0:00:05]} Nf6 {[%emt 0:01:57]} 3. c4 {[%emt 0:02:36]} e6 {[%emt 0:02:21]} 4. Bg2 {[%emt 0:00:30]} c6 {[%emt 0:01:06]} 5. O-O {[%emt 0:05:20]} Bd6 {[%emt 0:06:25]} 6. cxd5 {[%emt 0:02:26]} exd5 {[%emt 0:00:30]} 7. d4 {[%emt 0:00:30]} O-O {[%emt 0:00:30]} 8. Bg5 {[%emt 0:00:30]} h6 {[%emt 0:00:30]} 9. Bxf6 {[%emt 0:00:30]} Qxf6 {[%emt 0:00:30]} 10. e3 {[%emt 0:00:30]} Bg4 {[%emt 0:00:30]} 11. Nbd2 {[%emt 0:00:30]} Bxf3 {[%emt 0:00:30]} 12. Nxf3 {[%emt 0:01:21]} Nd7 {[%emt 0:01:21]} 13. a3 {[%emt 0:00:30]} Nb6 {[%emt 0:01:53]} 14. Nd2 {[%emt 0:05:46]} Rfe8 {[%emt 0:01:34]} 15. b4 {[%emt 0:06:16]} a5 {[%emt 0:05:37]} 16. Qb3 {[%emt 0:09:36]} a4 {[%emt 0:04:03]} 17. Qd3 {[%emt 0:01:52]} Nd7 {[%emt 0:04:39]} 18. Rfc1 {[%emt 0:14:31]} Rac8 {[%emt 0:01:13]} 19. b5 {[%emt 0:00:30]} Qe7 {[%emt 0:02:01]} 20. bxc6 {[%emt 0:06:06]} bxc6 {[%emt 0:04:34]} 21. Qa6 {[%emt 0:00:56]} Bxa3 {[%emt 0:00:30]} 22. Rxc6 {[%emt 0:00:30]} Nb8 {[%emt 0:00:30]} 23. Qxa4 {[%emt 0:00:30]} Rxc6 {[%emt 0:02:42]} 24. Qxa3 {[%emt 0:04:03]} Ra6 {[%emt 0:10:35]} 25. Qb2 {[%emt 0:01:30]} Rxa1+ {[%emt 0:02:19]} 26. Qxa1 {[%emt 0:01:00]} Rd8 {[%emt 0:11:38]} 27. Nb3 {[%emt 0:10:48]} Nc6 {[%emt 0:05:39]} 28. Nc5 {[%emt 0:00:30]} Qc7 {[%emt 0:00:30]} 29. Qa2 {[%emt 0:00:30]} Ne7 {[%emt 0:00:30]} 30. Bf3 {[%emt 0:00:30]} Qb6 {[%emt 0:00:30]} 31. Kg2 {[%emt 0:00:30]} g6 {[%emt 0:03:32]} 32. h4 {[%emt 0:09:19]} Kg7 {[%emt 0:02:19]} 33. Nd3 {[%emt 0:02:32]} Qd6 {[%emt 0:01:34]} 1/2-1/2

[Event "Slovakian-ch Youth 2022"]
[Site "Lubovna"]
[Date "2022.05.23"]
[Round "4.20"]
[White "Sustek, Adam"]
[Black "Salgovic, Simon"]
[Result "0-1"]
[ECO "B01"]
[WhiteElo "1636"]
[BlackElo "2091"]
[Annotator "TA"]
[PlyCount "38"]
[EventDate "2022.05.22"]
[EventCountry "SVK"]
[SourceTitle "playchess.com"]
[Source "ChessBase"]
[SourceQuality "1"]
[TimeControl "40/5400+30:1800+30"]

{[%evp 10,38,23,-22,-7,-69,-16,-51,-61,-91,-86,-104,-133,-113,-105,-159,-163,-189,-176,-255,-248,-247,-235,-299,-298,-443,-438,-443,-441,-692,-691]} 1. e4 {[%emt 0:00:05]} d5 {[%emt 0:00:26]} 2. exd5 {[%emt 0:00:18]} Qxd5 {[%emt 0:00:03]} 3. d4 {[%emt 0:00:47]} Nc6 {[%emt 0:00:05]} 4. Nf3 {[%emt 0:00:25]} Bg4 {[%emt 0:00:06]} 5. Be2 {[%emt 0:00:18]} O-O-O {[%emt 0:00:21]} 6. c3 {[%emt 0:02:20]} (6. Nc3 {seems wilder.} Qa5 7. Be3 e5 8. Nxe5 Bxe2 9. Qxe2 Nxe5 10. dxe5 Qxe5 11. Qc4) 6... e5 $1 {[%emt 0:05:02][%cal Re5d4] B01: Scandinavian Defence.} 7. dxe5 {[%emt 0:06:47]} (7. h3 $11 Bf5 8. Be3) 7... Qxd1+ $15 {[%emt 0:03:54]} ({Of course not} 7... Nxe5 8. Qxd5 Rxd5 9. Be3 $11) (7... Qe4 {with more complications.} 8. Nbd2 Bxf3 9. gxf3 Qxe5 10. Qc2 Bc5) 8. Bxd1 {[%emt 0:00:11] [#]} Nxe5 $1 {[%emt 0:00:20] Threatens to win with ...Nd3+. Black is slightly better.} 9. O-O {[%emt 0:01:22]} (9. Be2 Nxf3+) 9... Nxf3+ {[%emt 0:02:02]} 10. Bxf3 {[%emt 0:00:15]} Bxf3 {[%emt 0:00:03]} 11. gxf3 {[%emt 0:00:10]} Ne7 {[%emt 0:03:18][%cal Bg8e7,Be7f5,Bf5e3][%mdl 32] [#]} 12. Bg5 $146 {[%emt 0:03:07]} ({Better is} 12. Nd2) ({Predecessor:} 12. Nd2 Nf5 13. Ne4 Be7 14. Re1 Rd3 15. Ng3 Nxg3 16. hxg3 Bc5 17. Kg2 h5 18. Bg5 {0-1 (37) Ramirez M,E (2057)-Damjanovic,V (2397) Chess.com INT 2020}) 12... f6 $17 {[%emt 0:02:46]} 13. Be3 {[%emt 0:01:05]} Nf5 {[%emt 0:01:47]} 14. f4 {[%emt 0:04:23]} (14. Bc1 $142) 14... Nxe3 $19 {[%emt 0:01:07]} 15. fxe3 {[%emt 0:00:11]} Bc5 {[%emt 0:00:01]} 16. Re1 {[%emt 0:03:24]} Rhe8 {[%emt 0:00:31]} 17. Kf1 {[%emt 0:00:54]} (17. Kh1 $142) 17... Rxe3 {[%emt 0:04:04] Black is clearly winning.} 18. Rxe3 {[%emt 0:01:38]} Bxe3 {[%emt 0:00:07]} 19. f5 {[%emt 0:00:21]} (19. Na3 $142) 19... Bc1 {[%emt 0:01:32] White got outplayed after the opening.  Weighted Error Value: White=0.73/Black=0.00 (flawless)} 0-1

[Event "Slovakian-ch Youth 2022"]
[Site "Lubovna"]
[Date "2022.05.23"]
[Round "4.21"]
[White "Janik, Marek Tobias"]
[Black "Volanek, Maros"]
[Result "1-0"]
[ECO "A21"]
[WhiteElo "1840"]
[BlackElo "1458"]
[Annotator "NA COMBH"]
[PlyCount "121"]
[EventDate "2022.05.22"]
[EventCountry "SVK"]
[SourceTitle "playchess.com"]
[Source "ChessBase"]
[SourceQuality "1"]
[TimeControl "40/5400+30:1800+30"]

1. c4 {[%emt 0:00:13]} e5 {[%emt 0:00:04]} 2. Nc3 {[%emt 0:00:03]} f5 {[%emt 0:00:07]} 3. g3 {[%emt 0:00:04]} Nf6 {[%emt 0:00:20]} 4. Bg2 {[%emt 0:00:03]} Be7 {[%emt 0:01:04]} 5. e3 {[%emt 0:00:40]} d6 {[%emt 0:00:27]} 6. Nge2 {[%emt 0:00:08]} Nbd7 {[%emt 0:01:02]} 7. f4 {[%emt 0:00:24]} O-O {[%emt 0:01:54]} 8. O-O {[%emt 0:00:19]} c6 {[%emt 0:01:12]} 9. b3 {[%emt 0:02:45]} Qc7 {[%emt 0:03:45]} 10. Bb2 {[%emt 0:02:42]} Nb6 {[%emt 0:01:21]} 11. Qc2 {[%emt 0:03:15]} Kh8 {[%emt 0:06:16]} 12. h3 {[%emt 0:01:35]} Be6 {[%emt 0:03:50]} 13. Kh2 {[%emt 0:03:04]} Rad8 {[%emt 0:03:48]} 14. e4 {[%emt 0:05:27]} Qc8 {[%emt 0:06:08]} 15. d3 {[%emt 0:01:51]} h6 {[%emt 0:07:17]} 16. exf5 {[%emt 0:02:41]} Bxf5 {[%emt 0:00:38]} 17. Ne4 {[%emt 0:01:59]} Qc7 {[%emt 0:06:53]} 18. fxe5 {[%emt 0:03:17]} Nxe4 {[%emt 0:06:33]} 19. dxe4 {[%emt 0:00:05]} Bh7 {[%emt 0:00:17]} 20. Nf4 {[%emt 0:00:37]} Qc8 {[%emt 0:05:44]} 21. e6 {[%emt 0:02:28]} Bf6 {[%emt 0:10:58]} 22. e7 {[%emt 0:05:15]} Bxe7 {[%emt 0:00:21]} 23. Nh5 {[%emt 0:00:13]} Rg8 {[%emt 0:06:29]} 24. Qc3 {[%emt 0:04:27]} d5 {[%emt 0:05:46]} 25. exd5 {[%emt 0:19:30]} cxd5 {[%emt 0:00:14]} 26. Rf7 {[%emt 0:10:42]} d4 {[%emt 0:10:50]} 27. Qf3 {[%emt 0:00:09]} Qe6 {[%emt 0:01:05]} 28. Rd1 {[%emt 0:10:32]} Bg6 {[%emt 0:04:07]} 29. Rf4 {[%emt 0:03:28]} d3 {[%emt 0:00:15]} 30. Qg4 {[%emt 0:01:41]} Qxg4 {[%emt 0:01:43]} 31. hxg4 {[%emt 0:00:02]} Bc5 {[%emt 0:02:11]} 32. Be4 {[%emt 0:01:43]} Bxe4 {[%emt 0:00:52]} 33. Rxe4 {[%emt 0:00:02]} Kh7 {[%emt 0:00:25]} 34. Nf4 {[%emt 0:03:04]} a5 {[%emt 0:01:53]} 35. Ne6 {[%emt 0:00:33]} Rc8 {[%emt 0:00:32]} 36. Rxd3 {[%emt 0:00:11]} Bb4 {[%emt 0:01:10]} 37. a3 {[%emt 0:00:37]} Bf8 {[%emt 0:00:48]} 38. Kg2 {[%emt 0:01:37]} a4 {[%emt 0:00:10]} 39. Nxf8+ {[%emt 0:00:26]} Rcxf8 {[%emt 0:00:39]} 40. c5 {[%emt 0:00:06]} Nc8 {[%emt 0:00:41]} 41. Rxa4 {[%emt 0:36:26]} Rf7 {[%emt 0:30:22]} 42. Rf4 {[%emt 0:00:15]} Rc7 {[%emt 0:00:00]} 43. b4 {[%emt 0:00:00]} b6 {[%emt 0:00:00]} 44. Be5 {[%emt 0:00:00]} Rc6 {[%emt 0:00:00]} 45. Bd6 {[%emt 0:00:00]} Rd8 {[%emt 0:00:00]} 46. Rfd4 {[%emt 0:00:00]} Re8 {[%emt 0:00:00]} 47. Kf2 {[%emt 0:00:00]} bxc5 {[%emt 0:00:00]} 48. Bxc5 {[%emt 0:00:00]} Rf6+ {[%emt 0:00:00]} 49. Rf4 {[%emt 0:00:00]} Rfe6 {[%emt 0:00:00]} 50. Re3 {[%emt 0:00:00]} Rxe3 {[%emt 0:00:00]} 51. Bxe3 {[%emt 0:00:00]} Nd6 {[%emt 0:00:00]} 52. Kf3 {[%emt 0:00:00]} Ra8 {[%emt 0:00:00]} 53. Bc1 {[%emt 0:00:00]} Nb5 {[%emt 0:00:00]} 54. Ke4 {[%emt 0:00:00]} Rd8 {[%emt 0:00:00]} 55. Ke3 {[%emt 0:00:00]} Rd1 {[%emt 0:00:00]} 56. Bb2 {[%emt 0:00:00]} Rb1 {[%emt 0:00:00]} 57. Rf2 {[%emt 0:00:00]} Nd6 {[%emt 0:00:00]} 58. Kd3 {[%emt 0:00:00]} Rg1 {[%emt 0:00:00]} 59. Be5 {[%emt 0:00:00]} Nb5 {[%emt 0:00:00]} 60. a4 {[%emt 0:00:00]} Na3 {[%emt 0:00:00]} 61. Rf7 {[%emt 0:00:00]} 1-0

[Event "Slovakian-ch Youth 2022"]
[Site "Lubovna"]
[Date "2022.05.23"]
[Round "4.22"]
[White "Horvath, Marek"]
[Black "Sevcik, Matej"]
[Result "1/2-1/2"]
[ECO "D52"]
[WhiteElo "1801"]
[BlackElo "1820"]
[Annotator "NA COMBH"]
[PlyCount "54"]
[EventDate "2022.05.22"]
[EventCountry "SVK"]
[SourceTitle "playchess.com"]
[Source "ChessBase"]
[SourceQuality "1"]
[TimeControl "40/5400+30:1800+30"]

1. d4 {[%emt 0:00:09]} d5 {[%emt 0:00:07]} 2. c4 {[%emt 0:00:08]} c6 {[%emt 0:01:13]} 3. Nf3 {[%emt 0:00:07]} Nf6 {[%emt 0:00:05]} 4. Nc3 {[%emt 0:00:06]} e6 {[%emt 0:00:07]} 5. Bg5 {[%emt 0:00:22]} Nbd7 {[%emt 0:01:05]} 6. e3 {[%emt 0:00:17]} Qa5 {[%emt 0:00:07]} 7. Nd2 {[%emt 0:00:07]} dxc4 {[%emt 0:00:06]} 8. Bxf6 {[%emt 0:00:07]} Nxf6 {[%emt 0:00:05]} 9. Bxc4 {[%emt 0:01:49]} Be7 {[%emt 0:00:05]} 10. O-O {[%emt 0:00:08]} O-O {[%emt 0:00:06]} 11. a3 {[%emt 0:05:27]} Rd8 {[%emt 0:00:28]} 12. b4 {[%emt 0:01:25]} Qc7 {[%emt 0:00:43]} 13. Qc2 {[%emt 0:03:40]} e5 {[%emt 0:10:10]} 14. Nf3 {[%emt 0:08:18]} exd4 {[%emt 0:02:21]} 15. exd4 {[%emt 0:01:58]} Bd6 {[%emt 0:05:56]} 16. Rfe1 {[%emt 0:03:27]} Bg4 {[%emt 0:06:27]} 17. Ne5 {[%emt 0:00:21]} Rf8 {[%emt 0:00:17]} 18. Nxg4 {[%emt 0:09:47]} Nxg4 {[%emt 0:00:20]} 19. h3 {[%emt 0:00:32]} Nf6 {[%emt 0:01:04]} 20. Rad1 {[%emt 0:02:15]} Rac8 {[%emt 0:03:06]} 21. Qd2 {[%emt 0:06:38]} a5 {[%emt 0:06:55]} 22. bxa5 {[%emt 0:05:58]} Bxa3 {[%emt 0:01:58]} 23. Na4 {[%emt 0:04:05]} Rcd8 {[%emt 0:03:21]} 24. Qc3 {[%emt 0:02:54]} Bd6 {[%emt 0:01:49]} 25. Rb1 {[%emt 0:00:29]} Rfe8 {[%emt 0:04:17]} 26. Rxe8+ {[%emt 0:00:43]} Rxe8 {[%emt 0:00:31]} 27. Nc5 {[%emt 0:01:39]} Ne4 {[%emt 0:05:07]} 1/2-1/2

[Event "Slovakian-ch Youth 2022"]
[Site "Lubovna"]
[Date "2022.05.23"]
[Round "4.23"]
[White "Klimek, Martin"]
[Black "Papp, Gabor"]
[Result "0-1"]
[ECO "C11"]
[WhiteElo "1451"]
[BlackElo "2564"]
[Annotator "TA"]
[PlyCount "64"]
[EventDate "2022.05.22"]
[EventCountry "SVK"]
[SourceTitle "playchess.com"]
[Source "ChessBase"]
[SourceQuality "1"]
[TimeControl "40/5400+30:1800+30"]

{[%evp 14,64,-17,-15,-8,-22,-1,-18,-20,-46,-56,-51,-43,-85,-27,-33,-33,-33,-33,-62,-33,-33,-37,-181,-183,-193,-189,-194,-181,-196,-200,-183,-159,-202,-191,-196,-185,-448,-448,-555,-536,-536,-529,-471,-472,-451,-462,-456,-447,-420,-407,-470,-292]} 1. e4 {[%emt 0:00:06]} e6 {[%emt 0:00:01]} 2. d4 {[%emt 0:00:12]} d5 {[%emt 0:00:01]} 3. Nc3 {[%emt 0:00:51]} Nf6 {[%emt 0:00:07]} 4. e5 {[%emt 0:00:22]} Nfd7 {[%emt 0:00:06]} 5. Nf3 {[%emt 0:00:36]} c5 {[%emt 0:00:17]} 6. Bb5 {[%emt 0:01:07]} a6 {[%emt 0:02:39]} 7. Bxd7+ {[%emt 0:00:40]} Bxd7 {[%emt 0:00:02]} 8. O-O {[%emt 0:02:08]} Nc6 {[%emt 0:00:14] C11: French: Classical System: 4 e5 and 4 Bg5 dxe4.} 9. Ne2 {[%emt 0:00:28]} Rc8 $5 {[%emt 0:02:32][%mdl 4] [#] An interesting side line.} 10. b3 $146 {[%emt 0:00:40]} ({Predecessor:} 10. c3 cxd4 11. Nexd4 Be7 12. Re1 Qb6 13. Qe2 Qa7 14. Be3 Qb8 15. Bg5 Nxd4 16. cxd4 {½-½ (71) Zamudio,J (2082)-Abregu,M (2251) Buenos Aires 2019}) 10... Qc7 {[%emt 0:03:26] The position is equal.} 11. c3 {[%emt 0:02:29]} cxd4 {[%emt 0:15:37]} 12. cxd4 {[%emt 0:00:41]} Nb4 {[%emt 0:00:30]} 13. Bd2 {[%emt 0:08:46] [#]} Bb5 {[%emt 0:18:39]} ({Black should try} 13... Nc2 $1 $17 {[%cal Rc2a1]} 14. Rb1 Bb5) 14. Bxb4 $11 {[%emt 0:14:18]} Bxb4 {[%emt 0:00:02]} 15. a3 {[%emt 0:01:12]} Be7 {[%emt 0:00:42] And now ...Qc2 would win.} 16. Rc1 {[%emt 0:03:26] Inhibits Qc2.} Qd7 {[%emt 0:02:24] Black is more active.} (16... Bc6 $5 {[%cal Re7a3]} 17. b4 O-O $15) 17. Rxc8+ {[%emt 0:02:26]} Qxc8 {[%emt 0:00:01]} 18. b4 {[%emt 0:01:08] Loses the game.} (18. a4 $15 Bxe2 19. Qxe2) 18... Qc4 $19 {[%emt 0:03:40]} 19. Ng3 {[%emt 0:08:56]} O-O {[%emt 0:10:20][%cal Bh8f8,Bf8c8,Bc8c4][%mdl 32]} 20. Qc1 {[%emt 0:05:42]} Rc8 {[%emt 0:00:40]} 21. Qxc4 {[%emt 0:01:10]} Rxc4 {[%emt 0:00:03]} 22. Ra1 {[%emt 0:02:57]} Rc3 {[%emt 0:05:03]} 23. Nf1 {[%emt 0:03:59]} a5 {[%emt 0:05:28][%cal Ba6a5,Ba5b4][%mdl 32]} 24. Ne3 {[%emt 0:06:25]} axb4 {[%emt 0:01:34]} 25. a4 {[%emt 0:00:43]} (25. axb4 h6 26. h3) 25... Bc6 {[%emt 0:06:51]} 26. Nd2 {[%emt 0:05:41]} Rd3 {[%emt 0:02:18]} 27. Nf3 {[%emt 0:00:55]} Ra3 {[%emt 0:01:14]} 28. Nc2 {[%emt 0:00:54]} Rxa1+ {[%emt 0:00:23]} 29. Nxa1 {[%emt 0:00:10]} Bxa4 {[%emt 0:00:09] [#] White must now prevent ...b3.} 30. Nd2 {[%emt 0:00:27] Prevents b3.} Bg5 {[%emt 0:02:26]} 31. Ndb3 {[%emt 0:00:35]} f6 {[%emt 0:00:55] ...fxe5 is the strong threat.} 32. Nc5 {[%emt 0:03:37]} b5 {[%emt 0:00:25] Weighted Error Value: White=0.38/Black=0.07 (flawless)} 0-1

[Event "Slovakian-ch Youth 2022"]
[Site "Lubovna"]
[Date "2022.05.23"]
[Round "4.24"]
[White "Lakota, Jan"]
[Black "Ondrejcak Gregor"]
[Result "1-0"]
[ECO "C60"]
[WhiteElo "1488"]
[BlackElo "1000"]
[Annotator "NA COMBH"]
[PlyCount "93"]
[EventDate "2022.05.22"]
[EventCountry "SVK"]
[SourceTitle "playchess.com"]
[Source "ChessBase"]
[SourceQuality "1"]
[TimeControl "40/5400+30:1800+30"]

1. e4 {[%emt 0:00:07]} e5 {[%emt 0:00:08]} 2. Nf3 {[%emt 0:00:16]} Nc6 {[%emt 0:00:18]} 3. Bb5 {[%emt 0:00:13]} Nge7 {[%emt 0:00:15]} 4. O-O {[%emt 0:03:22]} g6 {[%emt 0:00:15]} 5. d4 {[%emt 0:00:11]} exd4 {[%emt 0:00:26]} 6. Nxd4 {[%emt 0:00:54]} Bg7 {[%emt 0:00:45]} 7. c3 {[%emt 0:00:28]} d5 {[%emt 0:01:32]} 8. Bg5 {[%emt 0:00:52]} f6 {[%emt 0:01:44]} 9. Bf4 {[%emt 0:03:01]} O-O {[%emt 0:01:38]} 10. exd5 {[%emt 0:02:32]} Nxd4 {[%emt 0:00:50]} 11. Qxd4 {[%emt 0:00:35]} Nxd5 {[%emt 0:00:53]} 12. Bc4 {[%emt 0:04:59]} c6 {[%emt 0:02:46]} 13. Na3 {[%emt 0:01:36]} a6 {[%emt 0:04:18]} 14. Rad1 {[%emt 0:00:45]} Be6 {[%emt 0:01:33]} 15. Qd2 {[%emt 0:00:41]} f5 {[%emt 0:00:31]} 16. Nc2 {[%emt 0:00:30]} Nxf4 {[%emt 0:01:09]} 17. Qxf4 {[%emt 0:00:08]} Qf6 {[%emt 0:01:53]} 18. Rd6 {[%emt 0:00:29]} Rfe8 {[%emt 0:19:27]} 19. Nd4 {[%emt 0:00:18]} Bxc4 {[%emt 0:00:54]} 20. Rxf6 {[%emt 0:00:44]} Bxf6 {[%emt 0:01:38]} 21. Rd1 {[%emt 0:02:58]} Rad8 {[%emt 0:01:17]} 22. b3 {[%emt 0:03:08]} Bf7 {[%emt 0:01:40]} 23. Qc1 {[%emt 0:02:16]} c5 {[%emt 0:02:11]} 24. Nf3 {[%emt 0:02:57]} Rxd1+ {[%emt 0:02:09]} 25. Qxd1 {[%emt 0:00:07]} Bxc3 {[%emt 0:00:57]} 26. h4 {[%emt 0:00:29]} Bb4 {[%emt 0:03:04]} 27. Qd7 {[%emt 0:00:53]} Re2 {[%emt 0:05:48]} 28. Ng5 {[%emt 0:00:21]} Re1+ {[%emt 0:01:59]} 29. Kh2 {[%emt 0:00:04]} Be8 {[%emt 0:00:28]} 30. Qxh7+ {[%emt 0:00:24]} Kf8 {[%emt 0:00:17]} 31. Qh8+ {[%emt 0:00:54]} Ke7 {[%emt 0:00:20]} 32. Qg7+ {[%emt 0:00:19]} Kd8 {[%emt 0:00:40]} 33. Qxb7 {[%emt 0:05:03]} a5 {[%emt 0:00:54]} 34. Qd5+ {[%emt 0:00:34]} Kc7 {[%emt 0:02:39]} 35. Ne6+ {[%emt 0:00:18]} Kb8 {[%emt 0:02:16]} 36. Qd8+ {[%emt 0:01:06]} Ka7 {[%emt 0:01:14]} 37. Qc7+ {[%emt 0:00:54]} Ka6 {[%emt 0:00:38]} 38. Nd8 {[%emt 0:00:20]} a4 {[%emt 0:01:01]} 39. Qb7+ {[%emt 0:00:36]} Ka5 {[%emt 0:00:15]} 40. Qa7+ {[%emt 0:00:08]} Kb5 {[%emt 0:00:17]} 41. bxa4+ {[%emt 0:30:43]} Kc4 {[%emt 0:30:30]} 42. Qa6+ {[%emt 0:00:30]} Kc3 {[%emt 0:01:07]} 43. Nc6 {[%emt 0:01:42]} Re6 {[%emt 0:01:10]} 44. Qc8 {[%emt 0:00:27]} Rxc6 {[%emt 0:00:36]} 45. Qxe8 {[%emt 0:00:06]} Ra6 {[%emt 0:02:17]} 46. Qe3+ {[%emt 0:00:10]} Kb2 {[%emt 0:00:36]} 47. Qe2+ {[%emt 0:00:05]} 1-0

[Event "Slovakian-ch Youth 2022"]
[Site "Lubovna"]
[Date "2022.05.23"]
[Round "4.25"]
[White "Havalda, Samuel"]
[Black "Vojtas Marek"]
[Result "1-0"]
[ECO "B33"]
[WhiteElo "1465"]
[BlackElo "1000"]
[Annotator "NA COMBH"]
[PlyCount "73"]
[EventDate "2022.05.22"]
[EventCountry "SVK"]
[SourceTitle "playchess.com"]
[Source "ChessBase"]
[SourceQuality "1"]
[TimeControl "40/5400+30:1800+30"]

1. e4 {[%emt 0:00:15]} c5 {[%emt 0:00:06]} 2. Nf3 {[%emt 0:00:07]} Nc6 {[%emt 0:00:09]} 3. d4 {[%emt 0:00:10]} cxd4 {[%emt 0:00:06]} 4. Nxd4 {[%emt 0:00:05]} e5 {[%emt 0:00:08]} 5. Nb5 {[%emt 0:00:10]} d6 {[%emt 0:00:20]} 6. N1c3 {[%emt 0:00:19]} a6 {[%emt 0:00:16]} 7. Na3 {[%emt 0:00:15]} Nf6 {[%emt 0:01:03]} 8. Bg5 {[%emt 0:00:48]} Be7 {[%emt 0:00:26]} 9. Bxf6 {[%emt 0:00:45]} Bxf6 {[%emt 0:00:15]} 10. Nd5 {[%emt 0:01:54]} Qa5+ {[%emt 0:03:12]} 11. c3 {[%emt 0:02:21]} Bg5 {[%emt 0:03:04]} 12. Nc4 {[%emt 0:00:23]} Qd8 {[%emt 0:02:43]} 13. Ndb6 {[%emt 0:00:29]} Rb8 {[%emt 0:01:43]} 14. Nxd6+ {[%emt 0:00:56]} Kf8 {[%emt 0:00:40]} 15. Ndxc8 {[%emt 0:00:59]} Rxc8 {[%emt 0:00:48]} 16. Nxc8 {[%emt 0:00:06]} Qxc8 {[%emt 0:00:06]} 17. h4 {[%emt 0:02:33]} Bh6 {[%emt 0:01:53]} 18. g3 {[%emt 0:01:07]} g6 {[%emt 0:01:05]} 19. Bh3 {[%emt 0:00:45]} Qc7 {[%emt 0:03:23]} 20. O-O {[%emt 0:02:23]} Rg8 {[%emt 0:05:37]} 21. Qf3 {[%emt 0:01:00]} g5 {[%emt 0:02:41]} 22. Rfd1 {[%emt 0:01:53]} Qb8 {[%emt 0:05:45]} 23. Rd7 {[%emt 0:01:48]} Qe8 {[%emt 0:00:55]} 24. Rad1 {[%emt 0:02:45]} Rg7 {[%emt 0:03:35]} 25. h5 {[%emt 0:03:47]} Kg8 {[%emt 0:03:16]} 26. R1d6 {[%emt 0:02:23]} g4 {[%emt 0:01:36]} 27. Bxg4 {[%emt 0:01:01]} Bg5 {[%emt 0:02:00]} 28. h6 {[%emt 0:01:10]} Rg6 {[%emt 0:03:05]} 29. Bh5 {[%emt 0:03:41]} Be7 {[%emt 0:02:58]} 30. Bxg6 {[%emt 0:01:56]} fxg6 {[%emt 0:02:55]} 31. Rd1 {[%emt 0:01:38]} Nd8 {[%emt 0:04:40]} 32. Qd3 {[%emt 0:01:23]} Nf7 {[%emt 0:02:26]} 33. Qc4 {[%emt 0:01:31]} Kf8 {[%emt 0:02:17]} 34. Rxb7 {[%emt 0:02:24]} Nd6 {[%emt 0:00:37]} 35. Rxd6 {[%emt 0:00:04]} Bxd6 {[%emt 0:00:26]} 36. Rg7 {[%emt 0:00:03]} Qe6 {[%emt 0:01:36]} 37. Qxe6 {[%emt 0:00:07]} 1-0

[Event "Slovakian-ch Youth 2022"]
[Site "Lubovna"]
[Date "2022.05.23"]
[Round "4.26"]
[White "Tokarcik, Patrik"]
[Black "Filo, David"]
[Result "1/2-1/2"]
[ECO "B13"]
[WhiteElo "1591"]
[BlackElo "1653"]
[Annotator "NA COMBH"]
[PlyCount "36"]
[EventDate "2022.05.22"]
[EventCountry "SVK"]
[SourceTitle "playchess.com"]
[Source "ChessBase"]
[SourceQuality "1"]
[TimeControl "40/5400+30:1800+30"]

1. e4 {[%emt 0:01:24]} c6 {[%emt 0:00:16]} 2. Nf3 {[%emt 0:01:18]} d5 {[%emt 0:00:14]} 3. exd5 {[%emt 0:01:42]} cxd5 {[%emt 0:00:11]} 4. d4 {[%emt 0:00:18]} Nf6 {[%emt 0:00:56]} 5. Bd3 {[%emt 0:01:33]} Nc6 {[%emt 0:00:39]} 6. c3 {[%emt 0:02:08]} Bg4 {[%emt 0:04:48]} 7. O-O {[%emt 0:02:39]} e6 {[%emt 0:01:05]} 8. Bg5 {[%emt 0:00:35]} Be7 {[%emt 0:00:50]} 9. Nbd2 {[%emt 0:00:48]} O-O {[%emt 0:02:11]} 10. Qc2 {[%emt 0:00:46]} h6 {[%emt 0:03:10]} 11. Bh4 {[%emt 0:00:16]} Rc8 {[%emt 0:04:40]} 12. Rfe1 {[%emt 0:04:54]} Bxf3 {[%emt 0:03:40]} 13. Nxf3 {[%emt 0:01:52]} Nb4 {[%emt 0:01:34]} 14. Qd2 {[%emt 0:02:07]} Nxd3 {[%emt 0:00:36]} 15. Qxd3 {[%emt 0:00:05]} Nd7 {[%emt 0:01:01]} 16. Bg3 {[%emt 0:01:04]} Qb6 {[%emt 0:11:23]} 17. Qe2 {[%emt 0:03:22]} Bd6 {[%emt 0:02:06]} 18. Bxd6 {[%emt 0:09:22]} Qxd6 {[%emt 0:00:37]} 1/2-1/2